bitfinex-derivatives/quotes_ETHF0:USTF0_20260222
["timestamp","ask_amount","ask_price","bid_price","bid_amount"]
[1771800280514,1.37003574,1958.0,1957.2,1.1683454]
[1771800280916,1.37450591,1958.0,1957.2,1.17195238]
[1771800281320,2.54285131,1958.0,1957.2,0.00360698]
[1771800281519,1.37003574,1957.9,1957.2,1.09031825]
[1771800281716,1.37003574,1957.9,1957.2,2.25866365]
[1771800282220,1.37003574,1957.9,1957.2,2.29584931]
[1771800282421,1.37003574,1957.9,1957.3,1.12389693]
[1771800282918,1.37003574,1957.9,1957.5,1.11872444]
[1771800284425,1.37003574,1957.9,1957.3,1.11135145]
[1771800284925,0.00447017,1958.0,1957.3,1.11135145]
[1771800286824,1.37450591,1958.0,1957.3,1.11135145]
[1771800288329,5.39304429,1957.7,1957.3,1.11135145]
[1771800288530,1.37003574,1957.6,1957.3,1.11135145]
[1771800288725,1.37003574,1957.9,1957.2,0.00360698]
[1771800288926,1.37003574,1957.9,1957.2,1.07750916]
[1771800290035,1.37003574,1957.9,1957.2,0.00360698]
[1771800290837,1.37003574,1957.9,1956.9,1.04965153]
[1771800291838,1.37003574,1957.9,1956.9,1.05370123]
[1771800295939,1.37003574,1957.9,1957.2,1.04380027]
[1771800299946,1.37003574,1957.9,1956.9,1.01650454]
[1771800301241,1.37003574,1958.5,1957.5,0.97546807]
[1771800301447,1.37450591,1958.4,1957.5,0.97546807]
[1771800301746,1.37003574,1958.4,1957.7,0.97546807]
[1771800301946,1.37003574,1959.5,1957.7,0.97546807]
[1771800302146,1.37003574,1959.3,1957.7,0.97546807]
[1771800302350,1.37003574,1959.1,1957.7,0.97546807]
[1771800302548,4.02300855,1958.4,1957.7,0.97546807]
[1771800303447,1.37003574,1959.2,1957.7,0.97546807]
[1771800303647,1.37003574,1959.0,1957.7,0.97546807]
[1771800304249,1.37003574,1958.8,1957.7,0.97546807]
[1771800304449,1.37003574,1958.8,1957.9,0.94291808]
[1771800304649,0.00447017,1958.7,1957.9,0.94291808]
[1771800305855,1.37003574,1958.8,1957.9,0.94291808]
[1771800306053,1.37450591,1958.8,1957.9,0.94291808]
[1771800307250,0.00447017,1958.8,1958.1,0.92176059]
[1771800307554,1.37003574,1958.9,1958.1,0.92176059]
[1771800307755,0.00447017,1958.8,1958.1,0.92176059]
[1771800310959,1.21356843,1958.7,1958.1,0.92176059]
[1771800311159,1.20909826,1958.7,1958.1,0.92176059]
[1771800311459,1.21356843,1958.6,1957.9,7.40665412]
[1771800311659,1.20909826,1958.6,1958.0,0.8963768]
[1771800316663,1.18720135,1958.5,1958.0,0.8963768]
[1771800316862,1.18273118,1958.5,1958.0,0.8963768]
[1771800317064,1.18720135,1958.5,1957.8,1.13370205]
[1771800317256,1.18720135,1958.5,1957.9,0.87823205]
[1771800317460,5.20573973,1958.3,1958.0,0.87823205]
[1771800317665,5.20573973,1958.3,1958.0,1.16723205]
[1771800317963,1.18273118,1958.3,1958.0,1.16723205]
[1771800318963,1.18273118,1958.3,1958.0,0.289]
[1771800319462,1.18273118,1958.3,1958.0,1.16023559]
[1771800322564,1.18273118,1958.3,1957.8,0.87276943]
[1771800322766,1.18720135,1958.2,1957.8,0.87276943]
[1771800323069,1.18273118,1958.2,1957.8,0.87276943]
[1771800323469,1.18273118,1958.2,1957.7,0.86752778]
[1771800323668,0.00447017,1958.1,1957.7,0.86752778]
[1771800324267,1.18720135,1958.0,1957.4,0.86234526]
[1771800324467,1.18273118,1958.0,1957.4,0.86234526]
[1771800329478,1.18273118,1957.8,1957.4,0.86234526]
[1771800329774,1.18273118,1957.9,1957.4,0.86234526]
[1771800330779,1.18916204,1957.9,1957.4,0.86234526]
[1771800330979,1.18916204,1957.9,1957.3,0.25554]
[1771800330980,1.19363221,1957.9,1957.3,0.25554]
[1771800331180,1.18273118,1957.7,1957.3,1.43299912]
[1771800332882,1.18273118,1957.8,1957.3,1.43299912]
[1771800333077,4.02300855,1957.7,1957.3,1.43299912]
[1771800334382,1.18720135,1957.7,1957.3,1.17745912]
[1771800337285,1.18273118,1957.7,1957.3,1.17745912]
[1771800337686,1.18720135,1957.6,1957.3,1.17745912]
[1771800337893,1.18273118,1957.6,1957.1,1.17745912]
[1771800338186,1.18720135,1957.5,1957.1,1.17745912]
[1771800338488,1.24007085,1957.6,1957.1,1.17745912]
[1771800340087,1.24007085,1957.4,1957.1,1.17745912]
[1771800340287,1.24007085,1957.7,1957.1,1.17745912]
[1771800341094,1.24007085,1957.5,1957.1,1.17745912]
[1771800341583,1.24454102,1957.4,1957.1,1.17745912]
[1771800341891,0.07551046,1957.6,1957.1,1.17745912]
[1771800343389,0.07551046,1957.6,1957.1,2.34700267]
[1771800343794,0.16000979,1957.4,1957.1,2.34700267]
[1771800344886,0.00447017,1957.3,1957.1,2.34700267]
[1771800345094,0.16000979,1957.4,1957.1,2.34700267]
[1771800346092,0.16000979,1957.4,1957.1,0.71392049]
[1771800346494,0.14766094,1957.6,1957.0,1.30251791]
[1771800347188,0.14766094,1957.6,1957.1,1.30245288]
[1771800347492,0.14766094,1957.6,1956.9,1.17359325]
[1771800347493,0.14766094,1957.6,1957.0,1.30245288]
[1771800347692,0.14766094,1957.6,1956.9,2.47604613]
[1771800347893,4.16853232,1957.1,1956.9,1.17359325]
[1771800348391,0.14552377,1957.1,1956.9,1.17359325]
[1771800348984,1.16954355,1957.7,1956.9,0.0040497]
[1771800349187,0.16259881,1957.6,1956.9,0.0040497]
[1771800349389,0.16259881,1957.6,1956.7,2.47673571]
[1771800349390,0.16259881,1957.6,1956.8,1.30921701]
[1771800350395,0.16259881,1957.6,1956.8,1.31509049]
[1771800350591,0.16259881,1957.6,1956.8,0.00587348]
[1771800350796,0.16259881,1957.6,1956.8,1.31754903]
[1771800351497,0.1486448,1957.8,1957.0,1.31160056]
[1771800363805,4.02300855,1957.4,1957.0,1.31160056]
[1771800364306,4.1793653,1957.4,1957.0,1.31160056]
[1771800365207,0.15635675,1957.4,1957.0,1.31160056]
[1771800365710,0.15361782,1957.8,1957.0,1.31160056]
[1771800367507,0.14599758,1957.6,1957.0,1.31160056]
[1771800376713,1.28853071,1957.7,1957.0,1.31160056]
[1771800376914,0.45909824,1957.6,1957.0,1.31160056]
[1771800377114,1.28853071,1957.7,1957.0,1.31160056]
[1771800377414,0.45910467,1957.6,1957.0,1.31160056]
[1771800377615,1.28853071,1957.7,1957.0,1.31160056]
[1771800377810,0.45916064,1957.6,1957.0,1.31160056]
[1771800378112,1.28853071,1957.7,1957.0,1.31160056]
[1771800378312,0.45916614,1957.6,1957.0,1.31160056]
[1771800378612,4.02300855,1957.4,1957.0,1.31160056]
[1771800380317,1.27389631,1957.5,1957.0,1.31160056]
[1771800380518,0.10435276,1957.8,1957.0,1.31160056]
[1771800380817,0.10435276,1957.6,1957.0,1.31160056]
[1771800381018,0.45931078,1957.5,1957.0,1.31160056]
[1771800381218,0.10435276,1957.6,1957.0,1.31160056]
[1771800381412,0.45939326,1957.5,1957.0,1.31160056]
[1771800381612,0.10435276,1957.6,1957.0,1.31160056]
[1771800381808,0.45939303,1957.5,1957.0,1.31160056]
[1771800382013,0.10435276,1957.6,1957.0,1.31160056]
[1771800382213,0.45939303,1957.5,1957.0,1.31160056]
[1771800382413,0.10435276,1957.6,1957.0,1.31160056]
[1771800382609,0.45937818,1957.5,1957.0,1.31160056]
[1771800382813,0.10435276,1957.6,1957.0,1.31160056]
[1771800383014,0.45937817,1957.5,1957.0,1.31160056]
[1771800383213,0.10435276,1957.6,1957.0,1.31160056]
[1771800383410,0.45936635,1957.5,1957.0,1.31160056]
[1771800383718,0.10435276,1957.6,1957.0,1.31160056]
[1771800383915,0.45936629,1957.5,1957.0,1.31160056]
[1771800384115,0.10435276,1957.6,1957.0,1.31160056]
[1771800384317,0.4593581,1957.5,1957.0,1.31160056]
[1771800384618,0.10435276,1957.6,1957.0,1.31160056]
[1771800384816,0.45935733,1957.5,1957.0,1.31160056]
[1771800385119,0.10937331,1957.6,1957.0,1.31160056]
[1771800385318,0.56872355,1957.5,1957.0,1.31160056]
[1771800385520,0.10937331,1957.5,1957.0,1.31160056]
[1771800386723,1.16954355,1957.7,1957.0,1.31160056]
[1771800386724,0.10652347,1957.7,1957.0,1.31160056]
[1771800387024,0.10363369,1957.5,1957.0,1.31160056]
[1771800387923,1.30765441,1957.7,1957.0,1.31160056]
[1771800388124,6.3867536,1957.6,1957.0,1.31160056]
[1771800388320,0.45931558,1957.5,1957.0,1.31160056]
[1771800388523,0.13811086,1957.7,1957.0,1.31160056]
[1771800388825,6.39152295,1957.6,1957.0,1.31160056]
[1771800389021,0.45931768,1957.5,1957.0,1.31160056]
[1771800389221,0.13518011,1957.7,1957.0,1.31160056]
[1771800389522,6.39152187,1957.6,1957.0,1.31160056]
[1771800389722,0.13518011,1957.7,1957.0,1.31160056]
[1771800389925,6.3914914,1957.6,1957.0,1.31160056]
[1771800390125,0.13518011,1957.7,1957.0,1.31160056]
[1771800390426,6.39149477,1957.6,1957.0,1.31160056]
[1771800390627,6.39149477,1957.6,1956.6,8.15632637]
[1771800390628,0.13214674,1957.0,1956.4,7.02285242]
[1771800390817,0.45938878,1956.9,1956.4,1.3246065]
[1771800391021,0.13220708,1957.2,1956.4,1.3246065]
[1771800391320,6.48033746,1957.1,1956.4,1.3246065]
[1771800391524,0.13220708,1957.2,1956.4,1.3246065]
[1771800391724,6.4710349,1957.1,1956.4,1.33123662]
[1771800391924,0.13220708,1957.2,1956.4,1.33123662]
[1771800392125,6.47103289,1957.1,1956.4,1.33123662]
[1771800392325,0.13220708,1957.2,1956.4,1.33123662]
[1771800392521,4.02300855,1956.9,1956.4,1.33123662]
[1771800392922,0.13220708,1957.2,1956.4,1.33123662]
[1771800396033,0.29740367,1957.5,1956.6,1.3246065]
[1771800396333,0.29740367,1957.5,1956.8,1.3246065]
[1771800397733,1.46344932,1957.6,1956.8,1.3246065]
[1771800398234,0.29390577,1957.6,1956.8,1.3246065]
[1771800399838,1.42503355,1957.8,1956.8,1.3246065]
[1771800400136,6.45795272,1957.7,1956.8,1.3246065]
[1771800400335,0.7448772,1957.6,1956.8,1.3246065]
[1771800400536,0.28701789,1957.6,1956.8,1.3246065]
[1771800400933,1.42503355,1957.8,1956.8,1.3246065]
[1771800401139,6.45809282,1957.7,1956.8,1.3246065]
[1771800401339,0.45786912,1957.6,1956.8,1.3246065]
[1771800401539,1.70851282,1957.8,1956.8,1.3246065]
[1771800401838,6.45802389,1957.7,1956.8,1.3246065]
[1771800402035,0.45786258,1957.6,1956.8,1.3246065]
[1771800402232,1.70851282,1957.8,1956.8,1.3246065]
[1771800402434,6.45802531,1957.7,1956.8,1.3246065]
[1771800402738,1.45302282,1957.8,1956.8,1.3246065]
[1771800402940,6.45801077,1957.7,1956.8,1.3246065]
[1771800403141,0.4578601,1957.6,1956.8,1.3246065]
[1771800403442,1.45302282,1957.8,1956.8,1.3246065]
[1771800403644,6.73532503,1957.7,1956.8,1.3246065]
[1771800403943,0.27709742,1957.7,1956.8,1.3246065]
[1771800405942,0.26535289,1957.8,1956.8,1.3246065]
[1771800406246,6.45857547,1957.7,1956.8,1.3246065]
[1771800406445,0.26535289,1957.8,1956.8,1.3246065]
[1771800406641,6.4585235,1957.7,1956.8,1.3246065]
[1771800406844,0.26535289,1957.8,1956.8,1.3246065]
[1771800407043,0.00643086,1957.9,1956.8,1.3246065]
[1771800407348,0.00643086,1957.9,1956.8,1.6136065]
[1771800407747,4.02943941,1957.9,1956.8,1.6136065]
[1771800408148,0.00643086,1957.9,1956.8,1.6136065]
[1771800409246,0.00643086,1957.9,1956.8,1.3246065]
[1771800413146,0.00643086,1957.9,1957.0,2.52025213]
[1771800413352,0.00643086,1957.9,1957.1,1.35027227]
[1771800414049,4.27219726,1958.6,1957.1,1.35027227]
[1771800414353,6.75597499,1958.5,1957.1,1.35027227]
[1771800414556,6.44957195,1958.4,1957.1,1.35027227]
[1771800414742,0.30640304,1958.5,1956.9,0.2556]
[1771800414743,1.16997986,1958.7,1957.4,1.35027227]
[1771800415048,0.00580624,1958.7,1957.7,1.35027227]
[1771800418251,0.28680293,1959.1,1958.0,1.35027227]
[1771800418647,0.29260917,1959.0,1958.0,1.35027227]
[1771800419253,0.29835621,1959.0,1958.0,1.35589059]
[1771800423455,4.02300855,1958.3,1958.0,1.35589059]
[1771800423653,4.27189768,1958.3,1958.0,1.35589059]
[1771800424054,0.24888913,1958.3,1958.0,1.35589059]
[1771800424258,0.24328966,1958.7,1958.0,1.35589059]
[1771800427958,0.24328966,1958.7,1957.9,1.35027227]
[1771800428960,0.24328966,1958.7,1957.9,1.35387808]
[1771800430262,0.20841305,1958.4,1957.9,1.35387808]
[1771800431863,0.18848113,1958.9,1957.9,1.35387808]
[1771800432060,0.18498619,1958.7,1957.9,1.35387808]
[1771800433962,0.1757624,1958.5,1957.9,1.35387808]
[1771800437967,4.02300855,1958.2,1957.9,1.35387808]
[1771800438160,4.18638154,1958.2,1957.9,1.35387808]
[1771800438660,4.02300855,1958.2,1957.9,1.35387808]
[1771800439967,4.18295544,1958.2,1957.9,1.30584798]
[1771800444372,0.1472767,1958.1,1957.9,0.00360581]
[1771800444573,0.1472767,1958.1,1957.8,1.30224217]
[1771800444772,0.1472767,1958.5,1957.8,1.30224217]
[1771800444973,0.14730252,1958.3,1957.8,1.30224217]
[1771800445675,0.14730252,1958.3,1957.8,0.00567054]
[1771800446174,0.14730252,1958.3,1957.8,1.30791271]
[1771800446375,0.14730252,1958.3,1951.4,79.51022414]
[1771800446376,0.04700869,1958.0,1957.5,1.30224217]
[1771800446576,0.56012869,1957.8,1956.7,1.30224217]
[1771800447468,0.56012869,1957.8,1956.7,1.3069242]
[1771800448174,0.5951657,1957.7,1956.7,1.3069242]
[1771800448571,0.5951657,1958.0,1956.7,1.3069242]
[1771800448771,7.05448465,1957.9,1956.7,1.3069242]
[1771800448972,0.45762271,1957.8,1956.7,1.3069242]
[1771800449167,0.5951657,1957.9,1956.7,1.3069242]
[1771800452078,0.55982372,1957.7,1956.7,1.3069242]
[1771800452378,4.02300855,1957.4,1956.7,1.3069242]
[1771800452577,4.02717787,1957.4,1956.7,1.3069242]
[1771800452778,0.00416932,1957.4,1956.7,1.3069242]
[1771800459078,0.53539268,1957.4,1956.7,1.3069242]
[1771800461182,0.00416932,1957.4,1956.7,1.3069242]
[1771800461378,4.78241551,1958.0,1956.7,1.3069242]
[1771800461583,0.25543,1958.2,1956.9,1.19415926]
[1771800461780,6.45097008,1958.1,1956.9,1.19415926]
[1771800461987,0.52888592,1958.2,1956.9,1.19415926]
[1771800462177,6.95271396,1958.1,1956.9,1.19415926]
[1771800462380,0.50777208,1958.1,1956.9,1.19415926]
[1771800464782,0.00530749,1958.1,1957.2,1.19415926]
[1771800464979,0.00530749,1958.1,1957.5,1.19415926]
[1771800465378,0.00530749,1958.1,1957.7,1.19415926]
[1771800465582,0.51395288,1958.5,1957.7,1.19415926]
[1771800466585,0.52053699,1958.5,1957.7,1.19415926]
[1771800466888,0.00658411,1958.5,1957.9,1.19415926]
[1771800467087,0.00658411,1958.5,1958.1,1.19415926]
[1771800467390,0.00658411,1958.5,1958.1,1.19989725]
[1771800467885,4.02959266,1958.5,1958.1,1.19989725]
[1771800469191,4.55206169,1958.5,1958.1,1.19989725]
[1771800473085,4.02959266,1958.5,1958.1,1.19989725]
[1771800473587,0.53193336,1958.5,1958.1,1.19989725]
[1771800473784,0.00658411,1958.5,1958.1,1.19989725]
[1771800476790,1.16888687,1958.9,1958.1,1.19989725]
[1771800477090,6.44257869,1958.8,1958.1,1.19989725]
[1771800477280,1.16888687,1958.9,1958.1,1.19989725]
[1771800477485,6.44135975,1958.8,1958.1,1.19989725]
[1771800477682,0.00503889,1958.8,1958.1,1.19989725]
[1771800483897,4.02300855,1958.7,1958.1,1.19989725]
[1771800484298,0.00503889,1958.8,1958.1,1.19989725]
[1771800485098,0.00503889,1958.8,1958.3,1.19415926]
[1771800486894,1.68567233,1959.3,1958.5,1.19415926]
[1771800487198,0.51749377,1959.2,1958.5,1.19415926]
[1771800488098,1.16888687,1959.1,1958.5,1.19415926]
[1771800488898,0.00378763,1959.2,1958.7,1.29236719]
[1771800489097,6.467,1959.5,1958.7,1.29236719]
[1771800489098,7.63588687,1959.5,1958.7,1.29236719]
[1771800489402,0.51470592,1959.0,1958.7,1.29236719]
[1771800490003,0.52040891,1959.0,1958.7,1.29236719]
[1771800491700,0.00570299,1959.0,1958.7,1.29236719]
[1771800493903,0.55743341,1959.0,1958.7,1.29236719]
[1771800494099,0.00570299,1959.0,1958.7,1.29236719]
[1771800494802,0.55810609,1959.0,1958.1,1.17462486]
[1771800494995,1.72193402,1958.9,1958.2,1.29236719]
[1771800496302,1.16888687,1958.9,1958.2,1.29236719]
[1771800497303,1.70514222,1958.9,1958.2,1.29236719]
[1771800497504,1.16888687,1958.9,1958.2,1.29236719]
[1771800497905,1.70514222,1958.9,1958.2,1.29236719]
[1771800498506,0.53848569,1958.6,1958.2,1.29236719]
[1771800498708,0.53848569,1958.6,1958.2,1.28578317]
[1771800500303,0.52465766,1958.4,1958.0,1.30744404]
[1771800500504,1.16888687,1958.3,1957.4,1.30744404]
[1771800501106,1.16888687,1958.5,1957.6,1.30744404]
[1771800501506,1.16888687,1958.5,1957.6,1.31187571]
[1771800502008,1.69411167,1958.5,1957.6,1.31187571]
[1771800504612,0.53123707,1958.4,1957.6,1.31187571]
[1771800509512,1.16888687,1958.7,1957.8,1.30744404]
[1771800509712,6.44858176,1958.6,1957.8,1.30744404]
[1771800510012,1.69012393,1958.9,1958.0,1.30744404]
[1771800510214,6.4481892,1958.8,1958.0,1.30744404]
[1771800510414,1.69012393,1958.9,1958.0,1.30744404]
[1771800510612,6.44819816,1958.8,1958.0,1.30744404]
[1771800510812,1.69012393,1958.9,1958.0,1.30744404]
[1771800511012,6.44819848,1958.8,1958.0,1.30744404]
[1771800511209,1.69012393,1958.9,1958.0,1.30744404]
[1771800511410,6.96190375,1958.8,1958.0,1.30744404]
[1771800511613,0.51366261,1958.8,1958.0,1.30744404]
[1771800512207,1.68304976,1958.9,1958.0,1.30744404]
[1771800512410,4.02300855,1958.5,1958.0,1.30744404]
[1771800514415,1.68304976,1958.9,1958.0,1.30744404]
[1771800516515,0.52919052,1958.8,1958.0,1.30744404]
[1771800519617,0.525999,1958.6,1958.0,1.30744404]
[1771800528921,0.51898303,1958.9,1958.0,1.30744404]
[1771800529121,4.02300855,1958.4,1958.0,1.30744404]
[1771800529522,0.52371978,1958.5,1958.0,1.30744404]
[1771800529922,1.17441838,1959.0,1958.0,1.30744404]
[1771800530220,0.52413004,1958.8,1958.0,1.30744404]
[1771800530417,0.52413004,1958.6,1958.0,1.30744404]
[1771800531218,1.17441838,1959.0,1958.0,1.30744404]
[1771800531423,0.52439866,1958.8,1958.0,1.30744404]
[1771800531623,6.46525601,1958.7,1958.0,1.30744404]
[1771800531821,0.52439866,1958.8,1958.0,1.30744404]
[1771800532023,6.4652066,1958.7,1958.0,1.30744404]
[1771800532223,0.52439866,1958.8,1958.0,1.30744404]
[1771800532525,6.46551214,1958.7,1958.0,1.30744404]
[1771800532724,0.45846328,1958.6,1958.0,1.30744404]
[1771800533021,0.52479225,1958.9,1958.0,1.30744404]
[1771800533225,6.99092787,1958.8,1958.0,1.30744404]
[1771800533425,0.98360137,1958.7,1958.0,1.30744404]
[1771800533628,0.52514172,1958.7,1958.0,1.30744404]
[1771800535031,1.69746643,1959.0,1958.0,1.30744404]
[1771800535226,6.98986539,1958.9,1958.0,1.30744404]
[1771800535426,6.98986539,1958.8,1958.0,1.30744404]
[1771800535627,0.4585116,1958.7,1958.0,1.30744404]
[1771800538136,0.53090076,1958.6,1958.0,1.30744404]
[1771800541933,0.52774088,1958.9,1958.0,1.30744404]
[1771800542134,0.52812979,1958.7,1958.0,1.30744404]
[1771800542533,4.02300855,1958.4,1958.0,1.30744404]
[1771800542934,0.52812979,1958.7,1958.0,1.30744404]
[1771800543134,0.45885918,1958.6,1958.0,1.30744404]
[1771800543334,1.27196121,1958.7,1958.0,1.30744404]
[1771800543535,1.73081956,1958.6,1958.0,1.30744404]
[1771800543834,1.27196121,1958.6,1958.0,1.30744404]
[1771800548348,1.69050002,1958.5,1958.0,1.30744404]
[1771800548547,1.23159627,1958.5,1958.0,1.30744404]
[1771800549238,1.23159627,1958.6,1958.0,1.30744404]
[1771800549440,0.45890054,1958.5,1958.0,1.30744404]
[1771800549639,1.23159627,1958.6,1958.0,1.30744404]
[1771800549843,1.69049203,1958.5,1958.0,1.30744404]
[1771800550141,1.23159627,1958.5,1958.0,1.30744404]
[1771800552143,1.23159627,1958.6,1958.0,1.30744404]
[1771800553139,7.68419203,1958.5,1957.8,1.20854524]
[1771800553444,0.45891872,1958.4,1957.8,1.20854524]
[1771800553646,1.23159627,1958.5,1957.8,1.20854524]
[1771800553845,0.45889673,1958.4,1957.8,1.20854524]
[1771800554143,1.23159627,1958.5,1957.8,1.20854524]
[1771800554341,0.45890135,1958.4,1957.8,1.20854524]
[1771800554645,1.23159627,1958.5,1957.8,1.20854524]
[1771800554846,0.45885572,1958.4,1957.8,1.20854524]
[1771800555047,1.23159627,1958.5,1957.8,1.20854524]
[1771800555347,0.45885599,1958.4,1957.8,1.20854524]
[1771800555547,1.23159627,1958.5,1957.8,1.20854524]
[1771800555846,0.4588175,1958.4,1957.8,1.20854524]
[1771800556039,1.23159627,1958.5,1957.8,1.20854524]
[1771800556239,0.4588175,1958.4,1957.8,1.20854524]
[1771800556448,1.23159627,1958.5,1957.8,1.20854524]
[1771800556646,1.66901137,1958.4,1957.8,1.20854524]
[1771800556847,1.21022866,1958.4,1957.8,1.20854524]
[1771800557447,2.44379264,1958.2,1957.8,1.20854524]
[1771800557646,1.21022866,1958.4,1957.8,1.20854524]
[1771800557843,4.54279437,1958.8,1957.8,1.20854524]
[1771800558049,1.21022866,1958.6,1957.8,1.20854524]
[1771800558247,6.45002471,1958.5,1957.8,1.20854524]
[1771800558450,1.21022866,1958.6,1957.8,1.20854524]
[1771800558650,7.65990546,1958.5,1957.8,1.20854524]
[1771800558852,1.21022866,1958.5,1957.8,1.20854524]
[1771800560352,1.21022866,1958.3,1957.8,1.20854524]
[1771800562349,1.21022866,1958.3,1957.7,1.21932299]
[1771800567452,1.21022866,1958.3,1957.6,0.00443167]
[1771800567954,1.21022866,1958.3,1957.6,1.22375466]
[1771800572158,1.21022866,1958.1,1957.6,1.22375466]
[1771800578663,1.21022866,1958.1,1957.6,0.00443167]
[1771800578861,3.72874379,1957.8,1957.6,0.00443167]
[1771800579362,2.44379264,1957.8,1957.6,0.00443167]
[1771800579562,2.44379264,1957.8,1957.6,1.21104352]
[1771800582465,3.72874379,1957.8,1957.6,0.00443167]
[1771800582965,1.28495115,1957.8,1957.6,0.00443167]
[1771800583567,1.28495115,1958.3,1957.6,1.21104352]
[1771800583862,1.16871539,1958.4,1957.6,1.21104352]
[1771800583863,1.28495115,1958.1,1957.6,1.21104352]
[1771800588065,1.28495115,1958.1,1957.6,0.00443167]
[1771800589267,1.28495115,1958.1,1957.6,1.21104352]
[1771800591664,1.28495115,1958.1,1957.6,0.00443167]
[1771800594667,1.28495115,1958.1,1957.3,1.20661185]
[1771800594971,2.44379264,1957.6,1957.3,1.20661185]
[1771800595369,1.28495115,1957.8,1957.3,1.20661185]
[1771800595871,1.2892767,1957.8,1957.3,1.21138655]
[1771800599373,0.00432555,1957.8,1957.3,1.21138655]
[1771800608381,1.16940785,1958.2,1957.3,1.21138655]
[1771800608682,6.4844827,1958.1,1957.3,1.21138655]
[1771800608880,1.26722245,1958.3,1957.3,1.21138655]
[1771800609081,7.75167316,1958.2,1957.3,1.21138655]
[1771800609282,6.48445071,1958.1,1957.3,1.21138655]
[1771800609485,0.00556879,1958.1,1957.3,1.21138655]
[1771800610386,1.27279124,1958.1,1957.3,1.21138655]
[1771800610586,0.00556879,1958.1,1957.3,1.21138655]
[1771800612488,0.00556879,1958.1,1957.5,1.29253595]
[1771800618795,1.31341096,1958.1,1957.5,1.29253595]
[1771800621593,0.00556879,1958.1,1957.5,1.29253595]
[1771800627400,1.31341096,1958.1,1957.5,1.29253595]
[1771800630405,1.11445244,1957.9,1957.5,1.29253595]
[1771800630602,2.42229461,1957.9,1957.5,1.29253595]
[1771800633505,0.00556879,1958.1,1957.5,1.29253595]
[1771800633506,1.30784217,1957.8,1957.5,1.29253595]
[1771800633705,1.30784217,1957.8,1957.4,1.25476653]
[1771800635904,1.30784217,1957.8,1957.3,0.0047747]
[1771800636109,1.30784217,1957.6,1957.3,0.0047747]
[1771800637110,1.30784217,1957.6,1957.1,1.25476653]
[1771800638109,1.30784217,1957.6,1957.1,1.26050741]
[1771800638405,1.30784217,1957.6,1957.1,0.00574088]
[1771800638614,1.23965173,1957.4,1957.1,1.2875253]
[1771800638910,1.23965173,1957.4,1957.1,0.00574088]
[1771800640913,1.23965173,1957.4,1956.8,1.28178442]
[1771800641315,1.23965173,1957.6,1956.8,1.28178442]
[1771800641812,1.23965173,1957.8,1957.0,1.28178442]
[1771800642020,1.23965173,1957.8,1957.0,1.28586178]
[1771800642411,1.23965173,1957.8,1957.2,1.28178442]
[1771800642612,1.23965173,1958.0,1957.2,1.28178442]
[1771800646409,1.23965173,1958.6,1957.9,1.05673664]
[1771800646614,1.23965173,1958.5,1957.9,1.05673664]
[1771800647515,1.24428228,1958.5,1957.9,1.05673664]
[1771800649815,0.00463055,1958.5,1957.9,1.05673664]
[1771800653918,1.24428228,1958.5,1957.9,1.05673664]
[1771800660624,0.00463055,1958.5,1957.9,1.05673664]
[1771800665026,1.24428228,1958.5,1957.9,1.05673664]
[1771800668727,1.24428228,1958.5,1957.5,0.91937606]
[1771800669326,1.24428228,1958.5,1957.6,0.92227412]
[1771800672121,1.24428228,1958.5,1957.8,0.96248581]
[1771800681225,0.00463055,1958.5,1957.8,0.96248581]
[1771800683133,1.29212483,1958.5,1957.8,0.96248581]
[1771800683734,1.29212483,1958.5,1957.7,7.96217611]
[1771800683935,1.29212483,1958.5,1957.7,8.94443556]
[1771800684432,1.29212483,1958.5,1957.8,0.98300695]
[1771800703353,1.29212483,1958.5,1957.4,8.94220536]
[1771800703553,1.29249146,1958.3,1957.4,0.98002925]
[1771800705856,1.29249146,1958.3,1957.3,0.97935373]
[1771800707256,1.29249146,1958.1,1957.3,0.97935373]
[1771800709058,1.29249146,1958.1,1957.1,1.04075212]
[1771800709260,1.29249146,1958.0,1957.2,1.04127345]
[1771800715559,1.29249146,1958.0,1957.1,1.16941698]
[1771800715756,1.29249146,1958.0,1957.1,2.20945923]
[1771800715964,1.29249146,1958.0,1957.2,1.04004225]
[1771800716860,1.29249146,1958.0,1957.1,1.16941698]
[1771800716861,1.29249146,1958.0,1957.4,1.04054689]
[1771800725565,1.29249146,1958.0,1957.3,1.16941698]
[1771800725864,1.29249146,1958.0,1957.4,1.04668629]
[1771800726260,1.29249146,1958.1,1957.6,1.04714608]
[1771800726558,0.00463055,1958.5,1958.1,1.04714608]
[1771800726962,1.29249146,1958.7,1958.2,1.04714608]
[1771800727962,1.29691385,1958.7,1958.2,1.04714608]
[1771800736671,1.29691385,1958.7,1958.1,2.16414262]
[1771800736976,1.29691385,1958.7,1958.0,0.99472564]
[1771800738374,1.29691385,1958.7,1957.9,1.16941698]
[1771800738579,1.29691385,1958.7,1957.9,2.15753387]
[1771800738880,1.29691385,1958.7,1958.0,0.98811689]
[1771800745983,1.29691385,1958.7,1958.1,2.13054096]
[1771800746283,1.29691385,1958.7,1958.2,0.95820923]
[1771800758286,1.29691385,1958.7,1958.3,0.90850814]
[1771800758695,1.29691385,1958.7,1958.2,0.90850814]
[1771800759690,1.29691385,1958.7,1958.1,0.89960545]
[1771800762189,1.29691385,1958.7,1957.8,7.96217611]
[1771800762396,1.25604877,1958.6,1957.9,0.88727466]
[1771800767295,1.25604877,1958.6,1958.1,0.89860542]
[1771800770299,1.25604877,1958.6,1957.8,7.96217611]
[1771800770501,1.26047116,1958.7,1957.9,0.92188757]
[1771800779803,1.26047116,1958.7,1958.0,0.91533467]
[1771800784005,1.26047116,1958.7,1958.0,0.90635649]
[1771800795721,1.26047116,1958.7,1957.9,8.85332917]
[1771800796216,1.26047116,1958.7,1958.0,0.89083839]
[1771800797612,1.26047116,1958.7,1957.9,8.85069001]
[1771800799012,1.26047116,1958.7,1958.0,0.88623473]
[1771800810126,1.26047116,1958.7,1957.9,7.96217611]
[1771800810523,1.28195747,1958.5,1957.8,8.812086]
[1771800811129,1.28195747,1958.5,1957.7,1.1052824]
[1771800811430,1.28195747,1958.6,1957.9,1.49972926]
[1771800811631,1.28195747,1958.6,1958.0,1.24425926]
[1771800815829,0.00442239,1958.7,1958.0,1.24425926]
[1771800816030,0.00442239,1958.7,1958.2,1.24425926]
[1771800816331,1.28637986,1958.7,1958.2,1.24425926]
[1771800817534,1.28195747,1959.4,1958.2,1.24425926]
[1771800817734,1.28195747,1959.2,1958.2,1.24425926]
[1771800818629,1.28563155,1959.2,1958.2,1.24425926]
[1771800822031,1.28563155,1959.2,1958.5,1.20544956]
[1771800822239,1.28563155,1959.2,1958.5,1.21073992]
[1771800824233,0.00367408,1959.2,1958.5,1.21073992]
[1771800824935,1.21499574,1959.2,1958.5,1.21073992]
[1771800826934,0.00367408,1959.2,1958.5,1.21073992]
[1771800827240,1.21499574,1959.2,1958.5,1.21073992]
[1771800829338,1.21499574,1959.2,1958.9,1.16752821]
[1771800829536,1.19709737,1959.5,1958.9,1.16752821]
[1771800829940,1.19709737,1959.5,1958.9,2.43958588]
[1771800830140,0.00143334,1959.4,1958.9,2.43958588]
[1771800830536,0.00508924,1959.4,1959.0,1.27206235]
[1771800830741,0.00143334,1959.3,1959.0,1.27206235]